[Event "Snabb-SM för veteraner, 65+ 2019"]
[Site "Schackcentrum, Vegagatan 20, Gothenburg, Sweden"]
[Date "2019.10.06"]
[Round "9.5"]
[White "Franzen, Thomas"]
[Black "Nilsson, Weine"]
[Result "1-0"]
[TimeControl "15 minutes + 10 seconds per move from move one"]
[WhiteFideId "1706039"]
[BlackFideId "1716727"]
[WhiteElo "1860"]
[BlackElo "1847"]

1. d4 {[%clk 00:14:26]} {[%emt 00:00:53]} Nf6 {[%clk 00:15:17]} {[%emt
00:00:03]} 2. Nf3 {[%clk 00:14:34]} {[%emt 00:00:03]} e6 {[%clk 00:15:25]}
{[%emt 00:00:03]} 3. g3 {[%clk 00:14:42]} {[%emt 00:00:02]} b6 {[%clk
00:15:25]} {[%emt 00:00:09]} 4. Bg2 {[%clk 00:14:48]} {[%emt 00:00:04]} Bb7
{[%clk 00:15:33]} {[%emt 00:00:02]} 5. c4 {[%clk 00:14:50]} {[%emt 00:00:08]}
Bb4+ {[%clk 00:15:18]} {[%emt 00:00:26]} 6. Bd2 {[%clk 00:14:52]} {[%emt
00:00:08]} Qe7 {[%clk 00:15:11]} {[%emt 00:00:16]} 7. O-O {[%clk 00:14:55]}
{[%emt 00:00:07]} O-O {[%clk 00:15:14]} {[%emt 00:00:07]} 8. a3 {[%clk
00:15:00]} {[%emt 00:00:05]} Bxd2 {[%clk 00:15:20]} {[%emt 00:00:03]} 9. Nbxd2
{[%clk 00:15:08]} {[%emt 00:00:02]} d6 {[%clk 00:15:27]} {[%emt 00:00:04]} 10.
Re1 {[%clk 00:14:13]} {[%emt 00:01:05]} Nbd7 {[%clk 00:15:13]} {[%emt
00:00:25]} 11. e4 {[%clk 00:14:03]} {[%emt 00:00:20]} e5 {[%clk 00:14:23]}
{[%emt 00:01:00]} 12. d5 {[%clk 00:13:42]} {[%emt 00:00:31]} a5 {[%clk
00:14:29]} {[%emt 00:00:04]} 13. b4 {[%clk 00:13:45]} {[%emt 00:00:06]} Ne8
{[%clk 00:14:05]} {[%emt 00:00:34]} 14. Qc2 {[%clk 00:13:38]} {[%emt 00:00:17]}
g6 {[%clk 00:13:40]} {[%emt 00:00:36]} 15. h4 {[%clk 00:10:49]} {[%emt
00:02:58]} Ng7 {[%clk 00:13:08]} {[%emt 00:00:42]} 16. Nf1 {[%clk 00:09:28]}
{[%emt 00:01:31]} h6 {[%clk 00:12:33]} {[%emt 00:00:45]} 17. N3h2 {[%clk
00:08:58]} {[%emt 00:00:41]} Kh7 {[%clk 00:12:00]} {[%emt 00:00:43]} 18. Rad1
{[%clk 00:07:54]} {[%emt 00:01:14]} axb4 {[%clk 00:10:56]} {[%emt 00:01:14]} 19.
axb4 {[%clk 00:08:02]} {[%emt 00:00:01]} Ra7 {[%clk 00:10:42]} {[%emt
00:00:23]} 20. Ra1 {[%clk 00:07:38]} {[%emt 00:00:35]} Rfa8 {[%clk 00:10:30]}
{[%emt 00:00:23]} 21. Rxa7 {[%clk 00:07:45]} {[%emt 00:00:03]} Rxa7 {[%clk
00:10:37]} {[%emt 00:00:03]} 22. Qd2 {[%clk 00:07:43]} {[%emt 00:00:12]} h5
{[%clk 00:10:04]} {[%emt 00:00:43]} 23. Bh3 {[%clk 00:06:14]} {[%emt 00:01:39]}
Nf8 {[%clk 00:07:30]} {[%emt 00:02:44]} 24. Nf3 {[%clk 00:06:06]} {[%emt
00:00:18]} f6 {[%clk 00:07:38]} {[%emt 00:00:02]} 25. N1h2 {[%clk 00:06:08]}
{[%emt 00:00:08]} Ra3 {[%clk 00:07:07]} {[%emt 00:00:38]} 26. Kg2 {[%clk
00:06:05]} {[%emt 00:00:16]} Qd8 {[%clk 00:07:13]} {[%emt 00:00:04]} 27. Qb2
{[%clk 00:04:59]} {[%emt 00:01:16]} Qa8 {[%clk 00:07:07]} {[%emt 00:00:15]} 28.
Rc1 {[%clk 00:04:00]} {[%emt 00:01:09]} Qa4 {[%clk 00:06:08]} {[%emt 00:01:07]}
29. Nd2 {[%clk 00:03:42]} {[%emt 00:00:30]} c6 {[%clk 00:04:15]} {[%emt
00:02:03]} 30. Nhf3 {[%clk 00:03:22]} {[%emt 00:00:31]} Ra2 {[%clk 00:03:48]}
{[%emt 00:00:37]} 31. Qc3 {[%clk 00:03:30]} Ra3 {[%clk 00:03:30]} {[%emt
00:00:30]} 32. Qb2 {[%clk 00:03:36]} {[%emt 00:00:05]} Ra2 {[%clk 00:03:29]}
{[%emt 00:00:11]} 33. Qb1 {[%clk 00:03:21]} {[%emt 00:00:24]} cxd5 {[%clk
00:03:15]} {[%emt 00:00:25]} 34. cxd5 {[%clk 00:03:29]} {[%emt 00:00:01]} Ba6
{[%clk 00:03:18]} {[%emt 00:00:07]} 35. Rc7 {[%clk 00:03:01]} {[%emt 00:00:38]}
Bb5 {[%clk 00:02:41]} {[%emt 00:00:47]} 36. Rc8 {[%clk 00:01:57]} {[%emt
00:01:14]} Nd7 {[%clk 00:02:33]} {[%emt 00:00:18]} 37. Qc1 {[%clk 00:01:57]}
{[%emt 00:00:10]} Ra1 {[%clk 00:02:39]} {[%emt 00:00:04]} 38. Qc7 {[%clk
00:02:04]} {[%emt 00:00:03]} Qd1 {[%clk 00:02:47]} {[%emt 00:00:02]} 39. g4
{[%clk 00:00:39]} {[%emt 00:01:35]} Bf1+ {[%clk 00:01:41]} {[%emt 00:01:15]} 40.
Nxf1 {[%clk 00:00:29]} {[%emt 00:00:21]} Qxf1+ {[%clk 00:01:49]} {[%emt
00:00:02]} 41. Kg3 {[%clk 00:00:37]} {[%emt 00:00:01]} hxg4 {[%clk 00:01:44]}
{[%emt 00:00:15]} 42. Bxf1 {[%clk 00:00:46]} 1-0

[Event "Snabb-SM för veteraner, 65+ 2019"]
[Site "Schackcentrum, Vegagatan 20, Gothenburg, Sweden"]
[Date "2019.10.06"]
[Round "9.6"]
[White "Degerfeldt, Sven"]
[Black "Alfven, Jorgen"]
[Result "0-1"]
[TimeControl "15 minutes + 10 seconds per move from move one"]
[WhiteFideId "1717430"]
[BlackFideId "1715950"]
[WhiteElo "1822"]
[BlackElo "1791"]

1. Nf3 {[%clk 00:15:16]} {[%emt 00:00:03]} Nf6 {[%clk 00:15:18]} {[%emt
00:00:03]} 2. c4 {[%clk 00:15:19]} {[%emt 00:00:07]} e6 {[%clk 00:15:26]}
{[%emt 00:00:02]} 3. g3 {[%clk 00:14:53]} {[%emt 00:00:35]} d5 {[%clk
00:15:28]} {[%emt 00:00:09]} 4. Bg2 {[%clk 00:14:54]} {[%emt 00:00:09]} c5
{[%clk 00:15:06]} {[%emt 00:00:32]} 5. cxd5 {[%clk 00:14:51]} {[%emt 00:00:13]}
exd5 {[%clk 00:15:14]} {[%emt 00:00:02]} 6. O-O {[%clk 00:14:59]} {[%emt
00:00:02]} Nc6 {[%clk 00:15:21]} {[%emt 00:00:03]} 7. d3 {[%clk 00:14:51]}
{[%emt 00:00:17]} Be7 {[%clk 00:14:43]} {[%emt 00:00:49]} 8. Nbd2 {[%clk
00:14:15]} {[%emt 00:00:46]} O-O {[%clk 00:14:49]} {[%emt 00:00:05]} 9. b3
{[%clk 00:14:14]} {[%emt 00:00:11]} Bf5 {[%clk 00:14:34]} {[%emt 00:00:25]} 10.
Bb2 {[%clk 00:14:15]} {[%emt 00:00:08]} Rc8 {[%clk 00:13:30]} {[%emt 00:01:14]}
11. Re1 {[%clk 00:13:48]} {[%emt 00:00:37]} b6 {[%clk 00:13:20]} {[%emt
00:00:21]} 12. Rc1 {[%clk 00:12:01]} {[%emt 00:01:56]} h6 {[%clk 00:12:32]}
{[%emt 00:00:59]} 13. Qc2 {[%clk 00:11:57]} {[%emt 00:00:14]} a5 {[%clk
00:12:14]} {[%emt 00:00:28]} 14. Qb1 {[%clk 00:11:59]} {[%emt 00:00:07]} Qd7
{[%clk 00:11:50]} {[%emt 00:00:35]} 15. e4 {[%clk 00:11:12]} {[%emt 00:00:57]}
dxe4 {[%clk 00:11:28]} {[%emt 00:00:33]} 16. dxe4 {[%clk 00:11:19]} {[%emt
00:00:02]} Bh3 {[%clk 00:10:52]} {[%emt 00:00:46]} 17. Nc4 {[%clk 00:11:14]}
{[%emt 00:00:15]} Bxg2 {[%clk 00:10:54]} {[%emt 00:00:08]} 18. Kxg2 {[%clk
00:11:21]} {[%emt 00:00:03]} Qb7 {[%clk 00:10:32]} {[%emt 00:00:32]} 19. Rcd1
{[%clk 00:11:02]} {[%emt 00:00:29]} Rfd8 {[%clk 00:10:20]} {[%emt 00:00:23]} 20.
e5 {[%clk 00:10:45]} {[%emt 00:00:28]} Ne8 {[%clk 00:09:59]} {[%emt 00:00:30]}
21. Qe4 {[%clk 00:10:36]} {[%emt 00:00:18]} Rxd1 {[%clk 00:09:26]} {[%emt
00:00:44]} 22. Rxd1 {[%clk 00:10:40]} {[%emt 00:00:06]} b5 {[%clk 00:07:25]}
{[%emt 00:02:12]} 23. Nd6 {[%clk 00:10:34]} {[%emt 00:00:15]} Bxd6 {[%clk
00:06:19]} {[%emt 00:01:16]} 24. exd6 {[%clk 00:10:39]} {[%emt 00:00:05]} Qd7
{[%clk 00:06:28]} {[%emt 00:00:02]} 25. Qf4 {[%clk 00:05:16]} {[%emt 00:05:32]}
Rd8 {[%clk 00:05:43]} {[%emt 00:00:56]} 26. Ne5 {[%clk 00:04:55]} {[%emt
00:00:31]} Nxe5 {[%clk 00:05:46]} {[%emt 00:00:07]} 27. Qxe5 {[%clk 00:04:52]}
{[%emt 00:00:13]} Qc6+ {[%clk 00:04:35]} {[%emt 00:01:22]} 28. f3 {[%clk
00:04:59]} {[%emt 00:00:02]} Qd7 {[%clk 00:04:42]} {[%emt 00:00:03]} 29. g4
{[%clk 00:04:07]} {[%emt 00:01:01]} Qe6 {[%clk 00:04:30]} {[%emt 00:00:23]} 30.
Qxe6 {[%clk 00:03:33]} {[%emt 00:00:43]} fxe6 {[%clk 00:04:39]} {[%emt
00:00:01]} 31. Be5 {[%clk 00:03:22]} {[%emt 00:00:21]} Nf6 {[%clk 00:04:30]}
{[%emt 00:00:19]} 32. Bxf6 {[%clk 00:02:53]} {[%emt 00:00:39]} gxf6 {[%clk
00:04:39]} {[%emt 00:00:02]} 33. Kf2 {[%clk 00:02:59]} {[%emt 00:00:03]} Kf7
{[%clk 00:04:36]} {[%emt 00:00:14]} 34. Ke3 {[%clk 00:03:08]} {[%emt 00:00:01]}
Ke8 {[%clk 00:04:21]} {[%emt 00:00:26]} 35. Ke4 {[%clk 00:02:13]} {[%emt
00:01:05]} Kd7 {[%clk 00:04:27]} {[%emt 00:00:04]} 36. f4 {[%clk 00:02:05]}
{[%emt 00:00:18]} Rc8 {[%clk 00:04:25]} {[%emt 00:00:12]} 37. f5 {[%clk
00:01:48]} {[%emt 00:00:27]} e5 {[%clk 00:04:20]} {[%emt 00:00:15]} 38. h4
{[%clk 00:00:42]} {[%emt 00:01:16]} c4 {[%clk 00:04:21]} {[%emt 00:00:09]} 39.
bxc4 {[%clk 00:00:43]} {[%emt 00:00:09]} Rxc4+ {[%clk 00:04:30]} {[%emt
00:00:01]} 40. Kf3 {[%clk 00:00:52]} b4 {[%clk 00:04:10]} {[%emt 00:00:31]} 41.
g5 {[%clk 00:00:12]} {[%emt 00:00:49]} hxg5 {[%clk 00:04:15]} {[%emt 00:00:05]}
42. hxg5 {[%clk 00:00:21]} fxg5 {[%clk 00:04:16]} {[%emt 00:00:09]} 43. Ke3
{[%clk 00:00:25]} {[%emt 00:00:05]} Rf4 {[%clk 00:04:20]} {[%emt 00:00:06]} 44.
Rd5 {[%clk 00:00:32]} {[%emt 00:00:04]} Rxf5 {[%clk 00:04:26]} {[%emt
00:00:04]} 45. Rxa5 {[%clk 00:00:41]} {[%emt 00:00:01]} Kxd6 {[%clk 00:04:26]}
{[%emt 00:00:10]} 46. Rb5 {[%clk 00:00:47]} {[%emt 00:00:03]} Rf4 {[%clk
00:04:34]} {[%emt 00:00:02]} 47. Ke2 {[%clk 00:00:54]} {[%emt 00:00:04]} Ke6
{[%clk 00:04:41]} {[%emt 00:00:03]} 48. Ke3 {[%clk 00:01:02]} {[%emt 00:00:01]}
Kf5 {[%clk 00:04:50]} {[%emt 00:00:01]} 49. Ke2 {[%clk 00:01:10]} {[%emt
00:00:02]} g4 {[%clk 00:05:00]} 50. Rb8 {[%clk 00:01:19]} {[%emt 00:00:02]} g3
{[%clk 00:05:03]} {[%emt 00:00:06]} 51. Rg8 {[%clk 00:01:23]} {[%emt 00:00:05]}
Rf2+ {[%clk 00:05:01]} {[%emt 00:00:13]} 52. Ke3 {[%clk 00:01:30]} {[%emt
00:00:03]} Rxa2 {[%clk 00:05:06]} {[%emt 00:00:05]} 53. Kd4 {[%emt 00:00:23]}
0-1

[Event "Snabb-SM för veteraner, 65+ 2019"]
[Site "Schackcentrum, Vegagatan 20, Gothenburg, Sweden"]
[Date "2019.10.06"]
[Round "9.7"]
[White "Landin, Bo"]
[Black "Olesen, Christer"]
[Result "0-1"]
[TimeControl "15 minutes + 10 seconds per move from move one"]
[WhiteFideId "1705261"]
[BlackFideId "1739069"]
[WhiteElo "1959"]
[BlackElo "1809"]

1. e4 {[%clk 00:15:17]} {[%emt 00:00:02]} c6 {[%clk 00:15:12]} {[%emt
00:00:09]} 2. Nf3 {[%clk 00:15:24]} {[%emt 00:00:03]} d5 {[%clk 00:15:17]}
{[%emt 00:00:05]} 3. Nc3 {[%clk 00:15:30]} {[%emt 00:00:04]} dxe4 {[%clk
00:15:17]} {[%emt 00:00:10]} 4. Nxe4 {[%clk 00:15:37]} {[%emt 00:00:03]} Nf6
{[%clk 00:15:19]} {[%emt 00:00:08]} 5. Nxf6+ {[%clk 00:15:37]} {[%emt
00:00:09]} exf6 {[%clk 00:15:27]} {[%emt 00:00:01]} 6. d4 {[%clk 00:15:39]}
{[%emt 00:00:09]} Bd6 {[%clk 00:15:24]} {[%emt 00:00:14]} 7. Be2 {[%clk
00:15:21]} {[%emt 00:00:28]} Bg4 {[%clk 00:15:18]} {[%emt 00:00:15]} 8. O-O
{[%clk 00:15:24]} {[%emt 00:00:07]} O-O {[%clk 00:15:25]} {[%emt 00:00:04]} 9.
Re1 {[%clk 00:14:59]} {[%emt 00:00:35]} Re8 {[%clk 00:15:22]} {[%emt 00:00:13]}
10. c4 {[%clk 00:14:32]} {[%emt 00:00:37]} Nd7 {[%clk 00:14:52]} {[%emt
00:00:40]} 11. Bd2 {[%clk 00:14:39]} {[%emt 00:00:04]} Nf8 {[%clk 00:14:52]}
{[%emt 00:00:10]} 12. Bc3 {[%clk 00:14:38]} {[%emt 00:00:10]} Bc7 {[%clk
00:14:21]} {[%emt 00:00:41]} 13. h3 {[%clk 00:13:10]} {[%emt 00:01:39]} Bh5
{[%clk 00:14:24]} {[%emt 00:00:07]} 14. Qd2 {[%clk 00:12:14]} {[%emt 00:01:06]}
Qd7 {[%clk 00:13:08]} {[%emt 00:01:26]} 15. Rad1 {[%clk 00:11:46]} {[%emt
00:00:38]} Rad8 {[%clk 00:13:05]} {[%emt 00:00:13]} 16. Ne5 {[%clk 00:08:45]}
{[%emt 00:03:11]} fxe5 {[%clk 00:12:54]} {[%emt 00:00:20]} 17. Bxh5 {[%clk
00:08:53]} {[%emt 00:00:02]} exd4 {[%clk 00:10:03]} {[%emt 00:03:02]} 18. Rxe8
{[%clk 00:09:01]} {[%emt 00:00:02]} Qxe8 {[%clk 00:09:12]} {[%emt 00:01:00]} 19.
Bb4 {[%clk 00:07:06]} {[%emt 00:02:06]} Qe5 {[%clk 00:08:34]} {[%emt 00:00:47]}
20. Bxf8 {[%clk 00:05:35]} {[%emt 00:01:41]} Kxf8 {[%clk 00:06:40]} {[%emt
00:02:04]} 21. Bf3 {[%clk 00:02:58]} {[%emt 00:02:47]} Qh2+ {[%clk 00:05:28]}
{[%emt 00:01:22]} 22. Kf1 {[%clk 00:03:07]} {[%emt 00:00:01]} Re8 {[%clk
00:05:20]} {[%emt 00:00:18]} 23. g3 {[%clk 00:03:16]} {[%emt 00:00:02]} Qxh3+
{[%clk 00:05:09]} {[%emt 00:00:20]} 24. Bg2 {[%clk 00:03:25]} {[%emt 00:00:01]}
Qe6 {[%clk 00:04:19]} {[%emt 00:01:00]} 25. Qxd4 {[%clk 00:03:02]} {[%emt
00:00:33]} Rd8 {[%clk 00:02:04]} {[%emt 00:02:25]} 26. Qc5+ {[%clk 00:03:10]}
{[%emt 00:00:02]} Bd6 {[%clk 00:02:06]} {[%emt 00:00:08]} 27. Qh5 {[%clk
00:02:31]} {[%emt 00:00:50]} Qxc4+ {[%clk 00:01:37]} {[%emt 00:00:39]} 28. Kg1
{[%clk 00:02:40]} {[%emt 00:00:01]} Qc2 {[%clk 00:01:18]} {[%emt 00:00:29]} 29.
Re1 {[%clk 00:02:24]} {[%emt 00:00:27]} Qg6 {[%clk 00:01:17]} {[%emt 00:00:11]}
30. Qa5 {[%clk 00:02:29]} {[%emt 00:00:05]} Ra8 {[%clk 00:01:02]} {[%emt
00:00:25]} 31. Qc3 {[%clk 00:02:12]} {[%emt 00:00:27]} Re8 {[%clk 00:00:28]}
{[%emt 00:00:44]} 32. Rxe8+ {[%clk 00:02:12]} {[%emt 00:00:11]} Kxe8 {[%clk
00:00:37]} {[%emt 00:00:01]} 33. Qe3+ {[%clk 00:02:21]} Qe6 {[%clk 00:00:35]}
{[%emt 00:00:13]} 34. Qxa7 {[%clk 00:02:28]} {[%emt 00:00:03]} Qd7 {[%clk
00:00:41]} {[%emt 00:00:04]} 35. Qe3+ {[%clk 00:02:28]} {[%emt 00:00:10]} Qe7
{[%clk 00:00:38]} {[%emt 00:00:13]} 36. Qa7 {[%clk 00:02:28]} {[%emt 00:00:10]}
Qc7 {[%clk 00:00:37]} {[%emt 00:00:10]} 37. Qe3+ {[%clk 00:02:32]} {[%emt
00:00:06]} Kf8 {[%clk 00:00:33]} {[%emt 00:00:14]} 38. a3 {[%clk 00:02:39]}
{[%emt 00:00:03]} f6 {[%clk 00:00:29]} {[%emt 00:00:14]} 39. b4 {[%clk
00:02:28]} {[%emt 00:00:21]} Qe7 {[%clk 00:00:34]} {[%emt 00:00:06]} 40. Qd3
{[%clk 00:02:32]} {[%emt 00:00:06]} g6 {[%clk 00:00:39]} {[%emt 00:00:05]} 41.
Bf3 {[%clk 00:02:32]} {[%emt 00:00:10]} Qe5 {[%clk 00:00:42]} {[%emt 00:00:07]}
42. Qb3 {[%clk 00:02:25]} {[%emt 00:00:17]} Kg7 {[%clk 00:00:48]} {[%emt
00:00:04]} 43. Kg2 {[%clk 00:02:25]} {[%emt 00:00:10]} h5 {[%clk 00:00:57]} 44.
Kg1 {[%clk 00:02:34]} {[%emt 00:00:01]} Qf5 {[%clk 00:00:44]} {[%emt 00:00:22]}
45. Bg2 {[%clk 00:02:29]} {[%emt 00:00:15]} Qe5 {[%clk 00:00:42]} {[%emt
00:00:12]} 46. Qd3 {[%clk 00:02:35]} {[%emt 00:00:04]} Kh6 {[%clk 00:00:44]}
{[%emt 00:00:09]} 47. Qd2+ {[%clk 00:02:31]} {[%emt 00:00:15]} g5 {[%clk
00:00:47]} {[%emt 00:00:07]} 48. Qa2 {[%clk 00:02:25]} {[%emt 00:00:16]} Qe1+
{[%clk 00:00:48]} {[%emt 00:00:08]} 49. Kh2 {[%clk 00:02:33]} {[%emt 00:00:02]}
Qe7 {[%clk 00:00:50]} {[%emt 00:00:08]} 50. Kg1 {[%clk 00:02:34]} {[%emt
00:00:09]} Be5 {[%clk 00:00:55]} {[%emt 00:00:05]} 51. Qb3 {[%clk 00:02:25]}
{[%emt 00:00:20]} Bd4 {[%clk 00:00:58]} {[%emt 00:00:07]} 52. Qg8 {[%clk
00:01:58]} {[%emt 00:00:37]} Qg7 {[%clk 00:00:32]} {[%emt 00:00:36]} 53. Qc8
{[%clk 00:02:06]} {[%emt 00:00:02]} Be5 {[%clk 00:00:38]} {[%emt 00:00:05]} 54.
Be4 {[%clk 00:02:07]} {[%emt 00:00:08]} g4 {[%clk 00:00:30]} {[%emt 00:00:18]}
55. Bf5 {[%clk 00:02:04]} {[%emt 00:00:13]} Bd4 {[%clk 00:00:25]} {[%emt
00:00:14]} 56. Qd8 {[%clk 00:02:02]} {[%emt 00:00:13]} Be5 {[%clk 00:00:29]}
{[%emt 00:00:06]} 57. Qc8 {[%clk 00:02:07]} {[%emt 00:00:04]} Bd4 {[%clk
00:00:26]} {[%emt 00:00:14]} 58. Kg2 {[%clk 00:02:02]} {[%emt 00:00:15]} Be5
{[%clk 00:00:33]} {[%emt 00:00:03]} 59. a4 {[%clk 00:02:11]} Bd4 {[%clk
00:00:36]} {[%emt 00:00:07]} 60. b5 {[%clk 00:02:18]} {[%emt 00:00:04]} cxb5
{[%clk 00:00:43]} {[%emt 00:00:04]} 61. axb5 {[%clk 00:02:26]} b6 {[%clk
00:00:43]} {[%emt 00:00:10]} 62. Qe6 {[%clk 00:02:23]} {[%emt 00:00:13]} Bc5
{[%clk 00:00:44]} {[%emt 00:00:09]} 63. Qd5 {[%clk 00:02:29]} {[%emt 00:00:04]}
Qe7 {[%clk 00:00:46]} {[%emt 00:00:08]} 64. Qg8 {[%clk 00:02:20]} {[%emt
00:00:19]} Qg7 {[%clk 00:00:54]} {[%emt 00:00:01]} 65. Qd8 {[%clk 00:02:23]}
{[%emt 00:00:07]} Qe7 {[%clk 00:00:53]} {[%emt 00:00:11]} 66. Qh8+ {[%clk
00:02:26]} {[%emt 00:00:07]} Kg5 {[%clk 00:00:51]} {[%emt 00:00:12]} 67. Qc8
{[%clk 00:02:15]} {[%emt 00:00:21]} Qg7 {[%clk 00:00:39]} {[%emt 00:00:21]} 68.
Be6 {[%clk 00:02:16]} {[%emt 00:00:10]} Kh6 {[%clk 00:00:37]} {[%emt 00:00:12]}
69. Qd8 {[%clk 00:02:20]} {[%emt 00:00:06]} Qe7 {[%clk 00:00:40]} {[%emt
00:00:07]} 70. Qh8+ {[%clk 00:02:08]} {[%emt 00:00:22]} Kg6 {[%clk 00:00:22]}
{[%emt 00:00:29]} 71. Qg8+ {[%clk 00:01:42]} {[%emt 00:00:36]} Qg7 {[%clk
00:00:15]} {[%emt 00:00:16]} 72. Bf5+ {[%clk 00:01:45]} {[%emt 00:00:07]} Kh6
{[%clk 00:00:13]} {[%emt 00:00:11]} 73. Qe8 {[%clk 00:01:54]} {[%emt 00:00:02]}
Kg5 {[%clk 00:00:20]} {[%emt 00:00:03]} 74. Qe6 {[%clk 00:02:00]} {[%emt
00:00:03]} Kh6 {[%clk 00:00:27]} {[%emt 00:00:04]} 75. Qd5 {[%clk 00:01:56]}
{[%emt 00:00:14]} Qe7 {[%clk 00:00:24]} {[%emt 00:00:13]} 76. Be6 {[%clk
00:01:59]} {[%emt 00:00:06]} Qg7 {[%clk 00:00:22]} {[%emt 00:00:12]} 77. Qf5
{[%clk 00:01:59]} {[%emt 00:00:10]} Qg5 {[%clk 00:00:26]} {[%emt 00:00:06]} 78.
Qe4 {[%clk 00:02:05]} {[%emt 00:00:04]} Qe5 {[%clk 00:00:28]} {[%emt 00:00:08]}
79. Qc6 {[%clk 00:02:13]} {[%emt 00:00:02]} Qd4 {[%clk 00:00:31]} {[%emt
00:00:07]} 80. Bxg4 {[%clk 00:01:31]} {[%emt 00:00:52]} Qxf2+ {[%clk 00:00:35]}
{[%emt 00:00:06]} 81. Kh3 {[%clk 00:01:32]} {[%emt 00:00:10]} hxg4+ {[%clk
00:00:24]} {[%emt 00:00:21]} 82. Kxg4 {[%clk 00:01:39]} {[%emt 00:00:03]} Qd4+
{[%clk 00:00:19]} {[%emt 00:00:15]} 83. Kf3 {[%clk 00:01:42]} {[%emt 00:00:06]}
Qe5 {[%clk 00:00:24]} {[%emt 00:00:05]} 84. Qc8 {[%clk 00:01:38]} {[%emt
00:00:14]} Qe3+ {[%clk 00:00:16]} {[%emt 00:00:18]} 85. Kg2 {[%clk 00:01:34]}
{[%emt 00:00:14]} Qe4+ {[%clk 00:00:23]} {[%emt 00:00:04]} 86. Kh3 {[%clk
00:01:24]} {[%emt 00:00:20]} Kg5 {[%clk 00:00:16]} {[%emt 00:00:17]} 87. Qg8+
{[%clk 00:01:24]} {[%emt 00:00:09]} Qg6 {[%clk 00:00:24]} {[%emt 00:00:02]} 88.
Qb3 {[%clk 00:01:25]} {[%emt 00:00:09]} Qf5+ {[%clk 00:00:31]} {[%emt
00:00:04]} 89. Kh2 {[%clk 00:01:29]} {[%emt 00:00:06]} Qe5 {[%clk 00:00:28]}
{[%emt 00:00:14]} 90. Qf3 {[%clk 00:01:23]} {[%emt 00:00:15]} Qf5 {[%clk
00:00:26]} {[%emt 00:00:12]} 91. Qd1 {[%clk 00:01:12]} {[%emt 00:00:21]} Qf2+
{[%clk 00:00:34]} {[%emt 00:00:02]} 92. Kh3 {[%clk 00:01:21]} {[%emt 00:00:01]}
Qf5+ {[%clk 00:00:40]} {[%emt 00:00:04]} 93. Kh2 {[%clk 00:01:29]} {[%emt
00:00:02]} Qg4 {[%clk 00:00:38]} {[%emt 00:00:12]} 94. Qd2+ {[%clk 00:01:32]}
{[%emt 00:00:07]} Kh5 {[%clk 00:00:43]} {[%emt 00:00:05]} 95. Qd5+ {[%clk
00:01:38]} {[%emt 00:00:05]} Qg5 {[%clk 00:00:43]} {[%emt 00:00:10]} 96. Qd1+
{[%clk 00:01:37]} {[%emt 00:00:11]} Kh6 {[%clk 00:00:50]} {[%emt 00:00:03]} 97.
Qd8 {[%clk 00:01:36]} {[%emt 00:00:10]} Qg7 {[%clk 00:00:51]} {[%emt 00:00:09]}
98. Qd2+ {[%clk 00:01:41]} {[%emt 00:00:06]} Kh7 {[%clk 00:00:51]} {[%emt
00:00:10]} 99. Qd3+ {[%clk 00:01:47]} {[%emt 00:00:03]} Qg6 {[%clk 00:00:56]}
{[%emt 00:00:05]} 100. Qd7+ {[%clk 00:01:53]} {[%emt 00:00:04]} Kh6 {[%clk
00:00:49]} {[%emt 00:00:18]} 101. Qd2+ {[%clk 00:01:50]} {[%emt 00:00:12]} Kg7
{[%clk 00:00:56]} {[%emt 00:00:03]} 102. Qd7+ {[%clk 00:01:58]} {[%emt
00:00:03]} Qf7 {[%clk 00:01:05]} {[%emt 00:00:01]} 103. Qg4+ {[%clk 00:02:05]}
{[%emt 00:00:02]} Kh8 {[%clk 00:01:06]} {[%emt 00:00:09]} 104. Qf5 {[%clk
00:02:00]} {[%emt 00:00:15]} Qh7+ {[%clk 00:01:03]} {[%emt 00:00:13]} 0-1